Cogmind - Beta 14 @@@ ROGUE MODE // 2024.12.14 @ 08:45:17 Player: Dosh Result: Destroyed by P9-7E5(R) with Subdweller Laser Performance ------------- Evolutions (0) 0 Regions Visited (2) 400 Robots Destroyed (32) 160 Value Destroyed (883) 883 Prototype IDs (2) 40 Alien Tech Used (0) 0 Bonus (0) 0 TOTAL SCORE: 1483 Bonus ------- None Cogmind --------- Core Integrity 0/250 Matter 300/300 Energy 74/100 System Corruption 1% Temperature Cool (6) Movement Core (150) Ox2 Location -10/Subcaves Parts ------- > --- POWER (1) -------- (None) > --- PROPULSION (2) --- (None) > --- UTILITY (2) ------ (None) > --- WEAPON (2) ------- Subdweller Beam Cannon > --- INVENTORY (5) ---- Subdweller Monowheel Large Storage Unit Light Armor Plating Peak State ------------ > --- POWER ------------ Light Ion Engine > --- PROPULSION ------- Light Treads Light Treads > --- UTILITY ---------- Scrap Shield > --- WEAPON ----------- Subdweller Beam Cannon Subdweller Machine Gun > --- INVENTORY -------- Light Treads Small Storage Unit Large Storage Unit Light Armor Plating Hacking Suite [Rating: 11] Favorites ----------- Power Light Ion Engine Engine Light Ion Engine Propulsion Light Treads Treads Light Treads Utility Large Storage Unit Device Subdweller Optics Storage Large Storage Unit Protection Light Armor Plating Weapon Beam Cannon Energy Gun EM Pulse Gun Energy Cannon Beam Cannon Ballistic Gun Assault Rifle Impact Weapon Hammer Build | -11 -10 -10 ------- Run | Yrd Mat Sub Slots Evolved . | . . . Power . | . . . Propulsion . | . . . Utility . | . . . Weapon . | . . . Parts Attached 26 | 6 13 7 Power 3 | 1 1 1 Engine 3 | 1 1 1 Core . | . . . Reactor . | . . . Propulsion 4 | 2 2 . Treads 4 | 2 2 . Leg . | . . . Wheel . | . . . Hover . | . . . Flight . | . . . Utility 9 | 1 5 3 Device 1 | . . 1 Storage 2 | 1 1 . Processor . | . . . Hackware . | . . . Protection 6 | . 4 2 Artifact . | . . . Weapon 10 | 2 5 3 Energy Gun 2 | 1 1 . Energy Cannon 3 | . 1 2 Ballistic Gun 3 | 1 1 1 Ballistic Cannon . | . . . Launcher . | . . . Special Weapon . | . . . Impact Weapon 2 | . 2 . Slashing Weapon . | . . . Piercing Weapon . | . . . Special Melee Weapon . | . . . Unidentified Prototypes . | . . . Parts Lost 12 | . 6 6 Power 3 | . 1 2 Propulsion 3 | . 1 2 Utility 3 | . 2 1 Weapon 3 | . 2 1 Highest Loss Streak 5 | . 5 5 To Critical Strikes . | . . . Average Slot Usage (%) 88 | . 89 86 Engine 13 | . 14 13 Treads 26 | . 25 27 Storage 10 | . 14 3 Protection 8 | . 7 10 Energy Gun 4 | . 6 . Energy Cannon 9 | . 7 14 Ballistic Gun 10 | . 8 14 Impact Weapon 2 | . 4 . Peak Build Rating 11 | 6 7 11 Average Rating 7 | 4 6 9 On Entrance 4 | . 6 6 Naked Turns . | . . . Heaviest Build 33 | 14 33 33 Greatest Support 40 | 40 40 40 Greatest Overweight (x) 1 | . 1 1 Average Overweight (x) . | . . . Largest Inventory Capacity 15 | 8 15 15 Average Capacity 11 | 6 13 7 Most Carried 10 | 1 8 10 Average Carried 5 | . 5 5 Final Capacity 15 | 8 15 5 Final Carried 7 | 1 7 3 Class Distribution -------------------- 78% | Mutant 16% | Subdweller-Mutant 4% | Scavenger-Mutant Dominant Class ---------------- Mutant | -10/Materials Subdweller-Mutant | -10/Subcaves Resources | -11 -10 -10 ----------- Run | Yrd Mat Sub Matter Collected 681 | 169 373 139 Remotely . | . . . Salvage Created 1155 | . 728 427 Parts 75 | . 43 32 Haulers Intercepted 2 | . 2 . Recyclers Shooed 1 | . 1 . Parts Field Recycled . | . . . Retrieved Matter . | . . . Parts Self-Destructed 17 | . . 17 Prevented . | . . . Kills | -11 -10 -10 ------- Run | Yrd Mat Sub Combat Hostiles Destroyed 26 | . 14 12 Guns 8 | . 5 3 Cannons 17 | . 8 9 AOE 1 | . 1 . Classes Destroyed 8 | . 7 1 Worker 1 | . 1 . Hauler 2 | . 2 . Recycler 1 | . 1 . Operator 1 | . 1 . Watcher 1 | . 1 . Swarmer 6 | . 3 3 Grunt 11 | . 11 . Subdweller 9 | . . 9 Best Kill Streak 3 | . 3 3 Combat Bots Only 3 | . 3 3 Max Kills in Single Turn 1 | . 1 1 Gunslinging . | . . . Exploded 1 | . 1 . Melee . | . . . Uniques/NPCs Destroyed . | . . . Combat | -11 -10 -10 -------- Run | Yrd Mat Sub Hostile Shots Fired 182 | . 99 83 Missed 48 | . 25 23 Damage Taken 2039 | . 882 1157 Core 265 | . 139 126 Absorbed by Shields . | . . . Core Remaining (%) 100 | 100 . . Volleys Fired 124 | . 80 44 Largest 2 | . 2 2 Hottest 110 | . 100 110 Shots Fired 226 | . 140 86 Gun 132 | . 89 43 Cannon 94 | . 51 43 Launcher . | . . . Special . | . . . Kinetic 102 | . 59 43 Thermal 94 | . 51 43 Explosive . | . . . Electromagnetic 30 | . 30 . Robot Hit Streak 20 | . 8 20 Robot Miss Streak 7 | . 7 2 Penetration Max . | . . . Secondary Targets . | . . . Shots Hit Robots 138 | . 79 59 Core Hits 50 | . 28 22 Critical Kills . | . . . Critical Parts Destroyed . | . . . Critical Strikes . | . . . Melee Attacks 2 | . 2 . Impact 2 | . 2 . Slashing . | . . . Piercing . | . . . Sneak Attacks . | . . . Combat Hostiles . | . . . Follow-up Attacks . | . . . Damage Inflicted 2532 | . 1394 1138 Guns 1070 | . 626 444 Cannons 1255 | . 561 694 Explosions 207 | . 207 . Melee . | . . . Ramming . | . . . Kinetic 829 | . 385 444 Thermal 1323 | . 629 694 Explosive . | . . . Electromagnetic 380 | . 380 . Impact . | . . . Slashing . | . . . Piercing . | . . . Highest Corruption 1 | . 1 1 Average Corruption 1 | . 1 1 Corruption Purged . | . . . Corruption Blocked . | . . . Effects 16 | . 7 9 Message Errors 5 | . . 5 Matter Fused 3 | . 3 . Heat Flow Errors 2 | . 2 . Data Loss (minor) 2 | . . 2 Data Loss (major) 1 | . . 1 Misfires 1 | . . 1 Alerts 1 | . 1 . Weapon Failures 1 | . 1 . Overload Shots . | . . . Overflow Damage . | . . . Projectiles . | . . . Explosions . | . . . Melee . | . . . Knockbacks . | . . . Impact . | . . . Kinetic . | . . . Secondary . | . . . Self-Inflicted Damage 19 | . 19 . Shots 1 | . 1 . Rammed . | . . . Targets Rammed . | . . . Kicked . | . . . Crushed . | . . . Highest Temperature 324 | . 324 30 Average Temperature 91 | . 102 6 Received Heat Transfer 663 | . 435 228 Siege Activations . | . . . Robots Corrupted . | . . . Combat Hostiles . | . . . Parts Fried . | . . . Impact Corruptions . | . . . Robots Melted . | . . . Combat Hostiles . | . . . Parts Melted 4 | . 1 3 Heat Transferred 2381 | . 1234 1147 Parts Sabotaged . | . . . Parts Stolen . | . . . Parts Stripped . | . . . Power Chain Reactions 2 | . 2 . Alert | -11 -10 -10 ------- Run | Yrd Mat Sub Peak Influence 381 | . 381 . Initial . | . . . Average 114 | . 122 . Maximum Alert Level 1 | . 1 . Low Security (%) 70 | 100 68 . Level 1 29 | . 31 . Level 2 . | . . . Level 3 . | . . . Level 4 . | . . . Level 5 . | . . . High Security . | . . . Max Security . | . . . Squads Dispatched 3 | . 3 . Investigation 2 | . 2 . Extermination . | . . . Reinforcement 1 | . 1 . Assault . | . . . Garrison . | . . . Intercept . | . . . Searches Triggered . | . . . Construction Impeded . | . . . Haulers Reinforced . | . . . Active Scanning Responses . | . . . Cargo Convoy Interrupts . | . . . Stealth | -11 -10 -10 --------- Run | Yrd Mat Sub Distress Signals 1 | . 1 . Communications Jammed . | . . . Distress Signals . | . . . Times Spotted 44 | . 26 18 Peak Tracking Total 5 | . 5 3 Tactical Retreats 7 | . 4 3 Traps | -11 -10 -10 ------- Run | Yrd Mat Sub Traps Triggered 3 | . 3 . Indirectly 1 | . 1 . Trap Hack Attempts . | . . . Triggered . | . . . Disarmed . | . . . Reprogrammed . | . . . Reused 1 | . . 1 Traps Extracted . | . . . Installed 2 | . . 2 Triggered 1 | . . 1 Most Traps Carried 2 | . . 2 Machines | -11 -10 -10 ---------- Run | Yrd Mat Sub Machines Disabled 2 | . 2 . Max in Single Turn 1 | . 1 . Machines Repaired . | . . . Machines Dismantled . | . . . Machines Sabotaged . | . . . Overloaded Fab Kills . | . . . Hacking | -11 -10 -10 --------- Run | Yrd Mat Sub Machines Accessed 6 | . 6 . Terminals 6 | . 6 . Fabricators . | . . . Repair Stations . | . . . Recycling Units . | . . . Scanalyzers . | . . . Garrison Access . | . . . Total Hacks 18 | . 18 . Successful 10 | . 10 . Failed 7 | . 7 . Catastrophic 1 | . 1 . Database Lockouts 1 | . 1 . Manual 11 | . 11 . Terminals 18 | . 18 . Fabricators . | . . . Repair Stations . | . . . Recycling Units . | . . . Scanalyzers . | . . . Garrison Access . | . . . Terminal Hacks 4 | . 4 . Robot Schematic 1 | . 1 . Prototype ID Bank 1 | . 1 . Unreport Threat 2 | . 2 . Fabricator Hacks . | . . . Repair Station Hacks . | . . . Recycling Unit Hacks . | . . . Scanalyzer . | . . . Garrison Access Hacks . | . . . Unauthorized Hacks 6 | . 6 . Terminals 6 | . 6 . Botnet 1 | . 1 . Skim 5 | . 5 . Fabricators . | . . . Repair Stations . | . . . Recycling Units . | . . . Scanalyzers . | . . . Garrison Access . | . . . Data Cores Recovered . | . . . Used . | . . . Hacking Detections 4 | . 4 . Full Trace Events . | . . . Feedback Events . | . . . Feedback Blocked . | . . . Robot Schematics Acquired 1 | . 1 . Robots Built . | . . . Authchips . | . . . Time . | . . . Total Robot Build Rating . | . . . Part Schematics Acquired . | . . . Parts Built . | . . . Authchips . | . . . Time . | . . . Total Part Build Rating . | . . . Parts Repaired . | . . . Time . | . . . Parts Recycled . | . . . Recycled Matter . | . . . Retrieved Matter . | . . . Retrieved Components . | . . . Parts Scanalyzed . | . . . Part Schematics Acquired . | . . . Parts Damaged . | . . . Bothacking | -11 -10 -10 ------------ Run | Yrd Mat Sub Used RIF Installer . | . . . Robots Hacked . | . . . Non-combat . | . . . Combat . | . . . Robot Hacks Applied . | . . . Relay Couplers Released . | . . . Fabnet Peak Effective % . | . . . Robots Rewired . | . . . Allies Hacked . | . . . Hacks Repelled . | . . . Allies | -11 -10 -10 -------- Run | Yrd Mat Sub Total Allies . | . . . Largest Group . | . . . Highest-Rated Group . | . . . Highest-Rated Ally . | . . . Total Orders . | . . . Ally Attacks . | . . . Total Damage . | . . . Kills . | . . . Allies Corrupted . | . . . Allies Melted . | . . . Intel | -11 -10 -10 ------- Run | Yrd Mat Sub Robot Analysis Total . | . . . Derelict Logs Recovered 1 | . . 1 Drone Launches . | . . . Drone Recoveries . | . . . Exploration | -11 -10 -10 ------------- Run | Yrd Mat Sub Turns Passed 2052 | 82 1193 777 Spaces Moved 925 | 50 521 354 Core 6 | 6 . . Treads 919 | 44 521 354 Legs . | . . . Wheels . | . . . Hover . | . . . Flight . | . . . Fastest Speed 50 | 50 160 160 Average Speed 164 | 146 169 160 Slowest Speed 240 | 160 240 240 Overloaded Moves . | . . . Propulsion Burnouts . | . . . Robots Hopped . | . . . Cave-ins Triggered . | . . . Exploration Rate (%) 40 | 4 93 23 Regions Visited 2 Branch Regions 1 Pre-discovered Areas . | . . . Known Exits Taken 1 | . 1 . Unknown Exits Taken 1 | 1 . . Scrap Searched . | . . . Spaces Dug . | . . . Terrain Destroyed 5 | . 4 1 Melee . | . . . Projectile 1 | . . 1 AOE 4 | . 4 . Terrain Rammed . | . . . Walls Destroyed . | . . . Machines Disabled . | . . . Actions | -11 -10 -10 --------- Run | Yrd Mat Sub Total 1228 | 56 685 487 Wait 118 | . 62 56 Move 923 | 49 520 354 Hop . | . . . Pick Up 17 | 1 7 9 Fast Attach 9 | 6 2 1 Attach 7 | . 5 2 Detach 1 | . 1 . Swap 10 | . 6 4 Drop 10 | . . 10 Fire 124 | . 80 44 Melee 2 | . 2 . Ram . | . . . Kick . | . . . Crush . | . . . Escape Stasis . | . . . Rewire . | . . . Trap 2 | . . 2 Miscellaneous 5 | . . 5 Route ------- -11/Scrapyard -10/Materials (discovered 5 exits: [*Mat x3] / *Min / *Sub) -10/Subcaves (discovered 3 exits: *Mat x2 / Rec) History --------- Turn | Location | Event 4 | -11/Scrapyard | Discovered new exit (range 14) 83 | -11/Scrapyard | Entered Materials 263 | -10/Materials | Discovered new exit (range 13) 301 | -10/Materials | Central database locked down 308 | -10/Materials | Build established: Mutant 444 | -10/Materials | Discovered new exit (range 16) 870 | -10/Materials | Discovered new exit (range 16) 898 | -10/Materials | Lost 5 parts (1p1n1u2w) 902 | -10/Materials | Core integrity fell below 50% 1049 | -10/Materials | Learned Storage stockpile data 1097 | -10/Materials | Learned Storage stockpile data 1104 | -10/Materials | Discovered new exit (range 16) 1161 | -10/Materials | Learned location of 2 exits from Subcaves 1180 | -10/Materials | Identified exit to Mines 1180 | -10/Materials | Identified exit to Subcaves 1276 | -10/Materials | Entered Subcaves 1277 | -10/Subcaves | Identified exit to Recycling 1278 | -10/Subcaves | Identified exit to Materials 1575 | -10/Subcaves | A swath of the cavern ceiling suddenly collapsed 1741 | -10/Subcaves | Learned Materials terminal intel 1944 | -10/Subcaves | Shifting Twisted Machinery released Shrapnel Trap 1958 | -10/Subcaves | Shifting Twisted Machinery released Shrapnel Trap 2003 | -10/Subcaves | Build established: Subdweller-Mutant 2024 | -10/Subcaves | A Subdweller sparked back to life 2024 | -10/Subcaves | A Subdweller sparked back to life 2047 | -10/Subcaves | Core integrity fell below 20% 2053 | -10/Subcaves | Destroyed by P9-7E5(R) with Subdweller Laser Last Messages --------------- 01926_ Scrap Shield Fragment affixed to Scrap Shield (+47). Shrapnel Trap falls loose from the Twisted Machinery. 01961_ Dropped Sml. Storage Unit. 01961_ Acquired Shrapnel Trap. 01982_ Dropped Hacking Suite. 01986_ Acquired Shrapnel Trap. 01989_ Subatomizers dissect the Wheel. 02013_ Dropped Shrapnel Trap. 02013_ Installed Shrapnel Trap. 02024_ UL-DYY(R) creaks and sparks as it begins to move. 02024_ P9-7E5(R) creaks and sparks as it begins to move. 02036_ Dropped Shrapnel Trap. 02037_ Installed Shrapnel Trap. 02039_ Lgt. Treads destroyed. 02041_ Scrap Shield destroyed. 02045_ WI-LGW(R) triggered Shrapnel Trap. 02045_ An expanding cloud of shrapnel blasts out in all directions. 02045_ Lgt. Treads destroyed. 02048_ Lgt. Ion Engine destroyed. 02051_ Sub. Machine Gun destroyed. Map ----- +----------------------------------------------------+ | ???????????????????????##""#""# #???????????????? | | ???????????????????????#!&=% #???????????????? | | ???????????????????????##!% = ##??????????????? | | ????????????????????????#!#* #??????????????? | | ????????????????????????###### ##??????????????? | | ????????????????????????????# ##??????????????? | | ?????????????????????###????# #??????????????? | | ????????????????????## ????# ##??????????????? | | ?????????????? ##??## ????# #??????????????? | | ????????????? ### ????## #??????????????? | | ?????????????? ##?## #??????????????? | | ????????????? ## ## #??????????????? | | ??????????????????# # !%! < ##??????????????? | | ???????????????????# # # =% #??????????????? | | ????????????????????# ####! #??????????????? | | ????????????????????# ### #??????????????? | | ???????????????????## ### #??????????????? | | ????????????????#### #= #??????????????? | | ????????????????# ^ % ##?????????????? | | ???????????# " "& # #?????????????? | | ???????????# ## ;;####?????????????? | | ??????????# " " ###R ; ????????????????? | | ??????????# #### " ####;RR;##????????????????? | | ????????## ?????#####??#; ;#????????????????? | | ????????# #####" ##?# ;;#????????????????? | | ??????????# """###@ ; #?????????????????? | | ???????????# """ ###?????????????????? | | ???????????# ! " !#???????????????????? | | ???????????# """""" #???????????????????? | | ??????????# """ ""#???????????????????? | | ???????? ##"" #???????????????????? | | ??????? %= ### ####""" ??????????????????? | | ??????? ???## #??#""" ?????????????????? | | ??????? ?????####??#" ????????????????? | | ???????? ????????????## ????????????????? | | ???????? ???????????????#### #???????????????? | | ????????? ????????????????????#?????????????????? | | ????????????????????????????????????????????????? | | ????????????????????????????????????????????????? | | ????????????????????????????????????????????????? | | ????????????????????????????????????????????????? | | ????????????????????????????????????????????????? | | ????????????????????????????????????????????????? | | ????????????????????????????????????????????????? | | ????????????????????????????????????????????????? | | ????????????????????????????????????????????????? | | ????????????????????????????????????????????????? | | ????????????????????????????????????????????????? | | ????????????????????????????????????????????????? | | ????????????????????????????????????????????????? | +----------------------------------------------------+ Best States ------------- Heat Dissipation 25 Energy Generation 10 Energy Capacity 250 Matter Stores 300 Matter Capacity 300 Sight Range 21 Terrain Scan Density 10 Armor Coverage 800 Evasion (%) 40 Recoil Reduction 2 Item Schematics ----------------- None Robot Schematics ------------------ M-13 Machinist | -10/Materials | Hacked Fabricated ------------ Nothing Alien Tech Used ----------------- None Achievements -------------- None Challenges ------------ None Game ------ Seed SystemOpticalReplicator Manual? 0 Play Time 00:11:59 Cumulative 547.7 hours Start 2024.12.14 @ 08:36:41 End 2024.12.14 @ 08:45:17 Sessions 1 Manual Loads 0 Difficulty Rogue Special Mode None Game No. 315 Rogue 315 Adventurer 0 Explorer 0 Win Type - Total 43 Types 29/3/5/1/1/0/2/1/1 Lore% 84 Gallery% 86 Achievement% 86 Wizard Run 0 Options --------- Layout 0 ASCII 0 Keyboard 1 Movement Numpad Keybinds 0 Fullscreen 2 Font 18/SmallcapsGlow Map View 76x50 Zoom Use 0% Tactical HUD 1 Map Filters NONE Filters NONE Steam 1 RUN: 808b683d-647b-4300-873a-06b65ce14fe8